fUST/lending_fUST_20250901
["ID","MTS","AMOUNT","RATE_DAILY","PERIOD"]
[382611976,1756678246416,-480.0,0.00017596,2]
[382611978,1756678246429,-738.09,0.00017596,2]
[382611980,1756678246438,-480.0,0.00017596,2]
[382611982,1756678246448,-749.14,0.00017596,2]
[382611984,1756678246458,-757.4,0.00017596,2]
[382611986,1756678246467,-480.0,0.00017596,2]
[382611988,1756678246477,-879.79,0.00017596,2]
[382611990,1756678246487,-480.0,0.00017596,2]
[382611992,1756678246497,-1008.99,0.00017596,2]
[382611994,1756678246506,-480.0,0.00017596,2]
[382611996,1756678246516,-151.0,0.00017596,2]
[382611998,1756678246526,-151.0,0.00017596,2]
[382612000,1756678246535,-573.96,0.00017596,2]
[382612002,1756678246544,-151.0,0.00017596,2]
[382612004,1756678246554,-1535.01,0.00017596,2]
[382612006,1756678246563,-1197.27,0.00017596,2]
[382612008,1756678246573,-480.0,0.00017596,2]
[382612010,1756678246583,-529.13,0.00017596,2]
[382612012,1756678246592,-752.56,0.00017596,2]
[382612014,1756678246601,-641.55,0.00017596,2]
[382612016,1756678246611,-480.0,0.00017596,2]
[382612018,1756678246620,-638.23,0.00017596,2]
[382612020,1756678246629,-480.0,0.00017596,2]
[382612022,1756678246639,-480.0,0.00017596,2]
[382612024,1756678246648,-480.0,0.00017596,2]
[382612026,1756678246658,-480.0,0.00017596,2]
[382612033,1756678246716,-480.0,0.00017596,2]
[382612035,1756678246726,-896.92,0.00017596,2]
[382612037,1756678246735,-2783.75,0.00017596,2]
[382612039,1756678246744,-510.02,0.00017596,2]
[382612041,1756678246754,-884.01,0.00017596,2]
[382612043,1756678246764,-480.0,0.00017596,2]
[382612045,1756678246774,-521.56,0.00017596,2]
[382612047,1756678246783,-515.28,0.00017596,2]
[382612049,1756678246792,-480.0,0.00017596,2]
[382612051,1756678246802,-1311.35,0.00017596,2]
[382612053,1756678246811,-585.58,0.00017596,2]
[382612055,1756678246821,-3862.39,0.00017596,2]
[382612057,1756678246831,-480.0,0.00017596,2]
[382612059,1756678246840,-480.0,0.00017596,2]
[382612061,1756678246850,-619.3,0.00017596,2]
[382612063,1756678246859,-870.58,0.00017596,2]
[382612065,1756678246870,-771.7,0.00017596,2]
[382612067,1756678246880,-480.0,0.00017596,2]
[382612069,1756678246890,-480.0,0.00017596,2]
[382612071,1756678246901,-638.61,0.00017596,2]
[382612072,1756678246910,-317.70107704,0.00017596,2]
[382612073,1756678246920,-688.12,0.00017596,2]
[382612074,1756678246929,-706.6,0.00017596,2]
[382612075,1756678246939,-2595.53,0.00017596,2]
[382612076,1756678246948,-536.97,0.00017596,2]
[382612077,1756678246958,-480.0,0.00017596,2]
[382612078,1756678246967,-1762.48,0.00017596,2]
[382612079,1756678246977,-620.69,0.00017596,2]
[382612080,1756678246986,-2710.33,0.00017596,2]
[382612081,1756678246996,-884.92,0.00017596,2]
[382612082,1756678247006,-480.0,0.00017596,2]
[382612083,1756678247018,-567.98,0.00017596,2]
[382612085,1756678247028,-480.0,0.00017596,2]
[382612087,1756678247037,-480.0,0.00017596,2]
[382612089,1756678247047,-751.07,0.00017596,2]
[382612091,1756678247056,-480.0,0.00017597,2]
[382612093,1756678247066,-480.0,0.00017597,2]
[382612095,1756678247076,-480.0,0.00017597,2]
[382612096,1756678247087,-480.0,0.00017597,2]
[382612099,1756678247099,-807.92,0.00017597,2]
[382612101,1756678247118,-480.0,0.00017597,2]
[382612103,1756678247128,-480.0,0.00017597,2]
[382612105,1756678247137,-289.01588302,0.00017597,2]
[382612107,1756678247146,-619.63,0.00017597,2]
[382612109,1756678247155,-574.31,0.00017597,2]
[382612111,1756678247165,-324.95714209,0.00017597,2]
[382612113,1756678247174,-817.99,0.00017597,2]
[382612115,1756678247184,-480.0,0.00017597,2]
[382612117,1756678247193,-480.0,0.00017597,2]
[382612119,1756678247205,-480.0,0.00017597,2]
[382612120,1756678247215,-971.42,0.00017597,2]
[382612123,1756678247225,-529.67188122,0.00017597,2]
[382612125,1756678247235,-856.87,0.00017597,2]
[382612127,1756678247245,-547.0331389,0.00017597,2]
[382612129,1756678247255,-480.0,0.00017597,2]
[382612131,1756678247265,-341.5630718,0.00017597,2]
[382612133,1756678247275,-529.29,0.00017597,2]
[382612135,1756678247285,-480.0,0.00017597,2]
[382612137,1756678247295,-480.0,0.00017597,2]
[382612139,1756678247304,-480.0,0.00017597,2]
[382612141,1756678247313,-480.0,0.00017597,2]
[382612143,1756678247323,-480.0,0.00017597,2]
[382612144,1756678247331,-480.0,0.00017597,2]
[382612146,1756678247341,-851.9,0.00017597,2]
[382612148,1756678247350,-480.0,0.00017597,2]
[382612151,1756678247360,-480.0,0.00017597,2]
[382612153,1756678247370,-508.57,0.00017597,2]
[382612154,1756678247379,-480.0,0.00017597,2]
[382612156,1756678247389,-854.17,0.00017597,2]
[382612159,1756678247399,-887.61,0.00017597,2]
[382612160,1756678247408,-868.47,0.00017597,2]
[382612163,1756678247419,-480.0,0.00017597,2]
[382612165,1756678247428,-480.0,0.00017597,2]
[382612167,1756678247438,-480.0,0.00017597,2]
[382612169,1756678247448,-480.0,0.00017597,2]
[382612171,1756678247457,-480.0,0.00017597,2]
[382612172,1756678247466,-480.0,0.00017597,2]
[382612174,1756678247476,-480.0,0.00017597,2]
[382612176,1756678247486,-480.0,0.00017597,2]
[382612177,1756678247495,-480.0,0.00017597,2]
[382612180,1756678247505,-480.0,0.00017597,2]
[382612181,1756678247515,-480.0,0.00017597,2]
[382612183,1756678247525,-480.0,0.00017597,2]
[382612185,1756678247534,-480.0,0.00017597,2]
[382612187,1756678247544,-480.0,0.00017597,2]
[382612189,1756678247553,-629.7,0.00017597,2]
[382612191,1756678247563,-480.0,0.00017597,2]
[382612193,1756678247572,-480.0,0.00017597,2]
[382612195,1756678247582,-480.0,0.00017597,2]
[382612197,1756678247591,-565.83,0.00017597,2]
[382612199,1756678247601,-535.38614742,0.00017597,2]
[382612201,1756678247610,-480.0,0.00017597,2]
[382612203,1756678247620,-480.0,0.00017597,2]
[382612205,1756678247629,-151.0,0.00017597,2]
[382612207,1756678247638,-573.31,0.00017597,2]
[382612209,1756678247647,-151.0,0.00017597,2]
[382612211,1756678247656,-151.0,0.00017597,2]
[382612213,1756678247666,-151.0,0.00017597,2]
[382612215,1756678247676,-151.0,0.00017597,2]
[382612217,1756678247686,-151.0,0.00017597,2]
[382612219,1756678247696,-151.0,0.00017597,2]
[382612221,1756678247706,-480.0,0.00017597,2]
[382612223,1756678247716,-151.0,0.00017597,2]
[382612225,1756678247725,-480.0,0.00017597,2]
[382612227,1756678247734,-270.445229,0.00017597,2]
[382612229,1756678247744,-151.0,0.00017597,2]
[382612231,1756678247753,-151.0,0.00017597,2]
[382612233,1756678247763,-151.0,0.00017597,2]
[382612235,1756678247772,-682.25,0.00017598,2]
[382612237,1756678247782,-480.0,0.00017598,2]
[382612239,1756678247791,-480.0,0.00017598,2]
[382612241,1756678247801,-480.0,0.00017598,2]
[382612243,1756678247811,-1010.08,0.00017598,2]
[382612245,1756678247821,-480.0,0.00017598,2]
[382612247,1756678247830,-480.0,0.00017598,2]
[382612249,1756678247840,-569.11,0.00017598,2]
[382612251,1756678247850,-723.98,0.00017598,2]
[382612253,1756678247860,-760.01,0.00017598,2]
[382612255,1756678247870,-576.01,0.00017598,2]
[382612257,1756678247879,-480.0,0.00017598,2]
[382612259,1756678247889,-480.0,0.00017598,2]
[382612261,1756678247899,-480.0,0.00017598,2]
[382612263,1756678247909,-480.0,0.00017598,2]
[382612265,1756678247918,-480.0,0.00017598,2]
[382612267,1756678247929,-480.0,0.00017598,2]
[382612269,1756678247940,-480.0,0.00017598,2]
[382612272,1756678247951,-647.4,0.00017598,2]
[382612274,1756678247961,-480.0,0.00017598,2]
[382612276,1756678247971,-480.0,0.00017598,2]
[382612278,1756678247981,-1439.77,0.00017598,2]
[382612280,1756678247991,-593.04,0.00017598,2]
[382612282,1756678248001,-151.0,0.00017598,2]
[382612284,1756678248011,-480.0,0.00017598,2]
[382612285,1756678248021,-154.702727,0.00017598,2]
[382612287,1756678248032,-602.68,0.00017598,2]
[382612289,1756678248042,-151.0,0.00017598,2]
[382612291,1756678248052,-758.91,0.00017598,2]
[382612293,1756678248063,-1275.72,0.00017598,2]
[382612295,1756678248074,-151.0,0.00017598,2]
[382612297,1756678248085,-1107.49,0.00017598,2]
[382612299,1756678248095,-480.0,0.00017598,2]
[382612301,1756678248105,-480.0,0.00017598,2]
[382612303,1756678248114,-480.0,0.00017598,2]
[382612305,1756678248124,-480.0,0.00017598,2]
[382612307,1756678248134,-480.0,0.00017598,2]
[382612309,1756678248144,-480.0,0.00017598,2]
[382612311,1756678248155,-480.0,0.00017598,2]
[382612313,1756678248165,-480.0,0.00017598,2]
[382612316,1756678248175,-480.0,0.00017598,2]
[382612318,1756678248184,-480.0,0.00017598,2]
[382612320,1756678248196,-614.49164885,0.00017599,2]
[382612322,1756678248206,-480.0,0.00017599,2]
[382612324,1756678248217,-480.0,0.00017599,2]
[382612326,1756678248227,-480.0,0.00017599,2]
[382612328,1756678248238,-698.54,0.00017599,2]
[382612330,1756678248248,-480.0,0.00017599,2]
[382612332,1756678248258,-480.0,0.00017599,2]
[382612334,1756678248268,-480.0,0.00017599,2]
[382612336,1756678248278,-480.0,0.00017599,2]
[382612338,1756678248288,-480.0,0.00017599,2]
[382612340,1756678248299,-480.0,0.00017599,2]
[382612342,1756678248308,-480.0,0.00017599,2]
[382612344,1756678248318,-480.0,0.00017599,2]
[382612346,1756678248328,-151.0,0.00017599,2]
[382612348,1756678248338,-151.0,0.00017599,2]
[382612350,1756678248348,-151.0,0.00017599,2]
[382612352,1756678248358,-483.64,0.00017599,2]
[382612354,1756678248368,-963.11,0.00017599,2]
[382612356,1756678248379,-565.96,0.00017599,2]
[382612359,1756678248390,-480.0,0.00017599,2]
[382612361,1756678248399,-151.0,0.00017599,2]
[382612363,1756678248409,-480.0,0.00017599,2]
[382612365,1756678248420,-507.96,0.00017599,2]
[382612367,1756678248431,-151.0,0.00017599,2]
[382612369,1756678248441,-480.0,0.00017599,2]
[382612371,1756678248453,-151.0,0.00017599,2]
[382612373,1756678248463,-151.0,0.00017599,2]
[382612375,1756678248474,-151.0,0.00017599,2]
[382612377,1756678248485,-151.0,0.00017599,2]
[382612379,1756678248495,-151.0,0.00017599,2]
[382612381,1756678248505,-480.0,0.00017599,2]
[382612383,1756678248515,-151.0,0.00017599,2]
[382612385,1756678248526,-151.0,0.00017599,2]
[382612387,1756678248536,-151.0,0.00017599,2]
[382612389,1756678248545,-216.453115,0.00017599,2]
[382612391,1756678248557,-151.0,0.00017599,2]
[382612394,1756678248567,-151.0,0.00017599,2]
[382612396,1756678248577,-216.453115,0.00017599,2]
[382612398,1756678248587,-151.0,0.00017599,2]
[382612400,1756678248597,-151.0,0.00017599,2]
[382612402,1756678248608,-216.453115,0.00017599,2]
[382612404,1756678248618,-975.0,0.00017599,2]
[382612406,1756678248627,-2152.0,0.00017599,2]
[382612408,1756678248638,-632.0,0.00017599,2]
[382612410,1756678248648,-422.354,0.00017599,2]
[382612412,1756678248658,-151.0,0.000176,2]
[382612414,1756678248669,-151.0,0.000176,2]
[382612416,1756678248679,-151.0,0.000176,2]
[382612419,1756678248690,-151.0,0.000176,2]
[382612421,1756678248701,-841.27,0.000176,2]
[382612423,1756678248711,-480.0,0.000176,2]
[382612425,1756678248722,-480.0,0.000176,2]
[382612427,1756678248734,-563.8,0.000176,2]
[382612429,1756678248746,-522.71,0.000176,2]
[382612431,1756678248757,-480.0,0.000176,2]
[382612433,1756678248767,-480.0,0.000176,2]
[382612435,1756678248778,-480.0,0.000176,2]
[382612437,1756678248789,-480.0,0.000176,2]
[382612439,1756678248799,-716.34,0.000176,2]
[382612441,1756678248810,-480.0,0.000176,2]
[382612443,1756678248820,-735.23,0.000176,2]
[382612446,1756678248832,-151.0,0.000176,2]
[382612448,1756678248843,-1324.42,0.000176,2]
[382612450,1756678248854,-480.0,0.000176,2]
[382612452,1756678248865,-541.11,0.000176,2]
[382612454,1756678248876,-151.0,0.000176,2]
[382612456,1756678248887,-480.0,0.000176,2]
[382612458,1756678248898,-151.0,0.000176,2]
[382612460,1756678248908,-151.0,0.000176,2]
[382612462,1756678248919,-169.664587,0.000176,2]
[382612464,1756678248929,-151.0,0.000176,2]
[382612467,1756678248941,-151.0,0.000176,2]
[382612469,1756678248956,-151.0,0.000176,2]
[382612471,1756678248969,-151.0,0.000176,2]
[382612473,1756678248983,-151.0,0.000176,2]
[382612476,1756678248996,-480.0,0.000176,2]
[382612478,1756678249009,-151.0,0.000176,2]
[382612480,1756678249021,-480.0,0.000176,2]
[382612482,1756678249032,-480.0,0.000176,2]
[382612485,1756678249044,-345.358856,0.000176,2]
[382612487,1756678249056,-345.358856,0.000176,2]
[382612489,1756678249068,-345.358856,0.000176,2]
[382612491,1756678249080,-345.358856,0.000176,2]
[382612493,1756678249092,-480.0,0.000176,2]
[382612496,1756678249106,-151.0,0.000176,2]
[382612498,1756678249119,-287.782845,0.000176,2]
[382612500,1756678249131,-151.0,0.000176,2]
[382612502,1756678249144,-151.0,0.000176,2]
[382612505,1756678249156,-480.0,0.000176,2]
[382612507,1756678249169,-151.0,0.000176,2]
[382612509,1756678249182,-480.0,0.000176,2]
[382612512,1756678249195,-196.009368,0.000176,2]
[382612514,1756678249212,-196.009368,0.000176,2]
[382612516,1756678249226,-196.009368,0.000176,2]
[382612518,1756678249239,-695.93,0.000176,2]
[382612520,1756678249251,-196.009368,0.000176,2]
[382612522,1756678249262,-480.0,0.000176,2]
[382612525,1756678249274,-151.0,0.000176,2]
[382612527,1756678249287,-561.12,0.000176,2]
[382612529,1756678249300,-480.0,0.000176,2]
[382612531,1756678249312,-415.47734393,0.000176,2]
[382612534,1756678249324,-993.76570585,0.00017608,2]
[382612562,1756678249608,-70.23429415,0.00017608,2]
[382612564,1756678249619,-1064.0,0.00017675,2]
[382612567,1756678249631,-151.0,0.000177,2]
[382612569,1756678249643,-151.0,0.000177,2]
[382612571,1756678249654,-381.0,0.00017745,2]
[382612573,1756678249665,-129.41179895,0.00017766,2]
[382612619,1756678250116,480.0,0.000165,2]
[382612628,1756678250195,480.0,0.000165,2]
[382612676,1756678250666,480.0,0.000165,2]
[382612687,1756678250761,480.0,0.000165,2]
[382612736,1756678251224,480.0,0.000165,2]
[382612938,1756678253394,565.13,0.000165,2]
[382612956,1756678253840,480.0,0.000165,2]
[382613150,1756678255858,5000.0,0.000165,2]
[382613166,1756678256008,2332.88,0.000165,2]
[382613480,1756678259200,1215.22,0.000165,2]
[382613673,1756678261252,480.0,0.000165,2]
[382613851,1756678263586,3057.73,0.000165,2]
[382614010,1756678265177,480.0,0.000165,2]
[382614108,1756678266260,480.0,0.000165,2]
[382614538,1756678270784,1100.62,0.000165,2]
[382614670,1756678272128,494.38,0.000165,2]
[382614762,1756678273729,480.0,0.000165,2]
[382614789,1756678273996,480.0,0.000165,2]
[382615086,1756678277468,642.85,0.000165,2]
[382615206,1756678281438,5000.0,0.000165,2]
[382615227,1756678281636,480.0,0.000165,2]
[382615393,1756678283280,480.0,0.000165,2]
[382615661,1756678287726,480.0,0.000165,2]
[382615677,1756678288382,630.41,0.000165,2]
[382615678,1756678289133,480.0,0.000165,2]
[382615679,1756678294486,480.0,0.000165,2]
[382615680,1756678294617,480.0,0.000165,2]
[382615681,1756678297919,480.0,0.000165,2]
[382615682,1756678299436,747.47,0.000165,2]
[382615683,1756678299776,1477.9,0.000165,2]
[382615684,1756678300115,480.0,0.000165,2]
[382615685,1756678301690,842.7,0.000165,2]
[382615686,1756678305331,5000.0,0.000165,2]
[382615687,1756678308609,649.55,0.000165,2]
[382615688,1756678309623,737.76,0.000165,2]
[382615689,1756678311728,480.0,0.000165,2]
[382615690,1756678314771,480.0,0.000165,2]
[382615691,1756678319883,480.0,0.000165,2]
[382615692,1756678320442,480.0,0.000165,2]
[382615693,1756678321469,480.0,0.000165,2]
[382615694,1756678322009,480.0,0.000165,2]
[382615695,1756678322748,611.58,0.000165,2]
[382615696,1756678323125,300.0,0.000165,2]
[382615697,1756678326028,219.351157,0.00025,30]
[382615698,1756678326229,1200.0,0.000165,2]
[382615699,1756678337452,480.0,0.000165,2]
[382615700,1756678338384,2200.22,0.000165,2]
[382615702,1756678343116,674.94,0.000165,2]
[382615703,1756678344771,480.0,0.000165,2]
[382615704,1756678349437,398.33755648,0.000165,2]
[382615705,1756678363195,480.0,0.000165,2]
[382615706,1756678363225,668.68,0.000165,2]
[382615707,1756678366543,480.0,0.000165,2]
[382615708,1756678369476,663.21,0.000165,2]
[382615709,1756678370632,480.0,0.000165,2]
[382615710,1756678377110,480.0,0.000165,2]
[382615711,1756678377738,1179.84,0.000165,2]
[382615712,1756678382825,300.0,0.000165,2]
[382615713,1756678383423,2000.0,0.000165,2]
[382615714,1756678383751,480.0,0.000165,2]
[382615715,1756678386519,580.8,0.000165,2]
[382615716,1756678396990,480.0,0.000165,2]
[382615717,1756678401750,480.0,0.000165,2]
[382615718,1756678407779,480.0,0.000165,2]
[382615722,1756678412352,525.18,0.000165,2]
[382615723,1756678419365,480.0,0.000165,2]
[382615725,1756678421103,480.0,0.000165,2]
[382615726,1756678423474,480.0,0.000165,2]
[382615727,1756678424552,480.0,0.000165,2]
[382615728,1756678427455,480.0,0.000165,2]
[382615729,1756678429114,672.79,0.000165,2]
[382615730,1756678430215,480.0,0.000165,2]
[382615731,1756678437268,480.0,0.000165,2]
[382615732,1756678444443,480.0,0.000165,2]
[382615733,1756678447647,300.0,0.000165,2]
[382615734,1756678455691,480.0,0.000165,2]
[382615735,1756678455928,480.0,0.000165,2]
[382615736,1756678456073,480.0,0.000165,2]
[382615737,1756678466493,1230.43,0.000165,2]
[382615738,1756678467190,480.0,0.000165,2]
[382615739,1756678470705,480.0,0.000165,2]
[382615740,1756678474794,480.0,0.000165,2]
[382615741,1756678484223,480.0,0.000165,2]
[382615742,1756678486905,480.0,0.000165,2]
[382615743,1756678490291,1000.0,0.00015571,2]
[382615744,1756678495099,579.94,0.000165,2]
[382615745,1756678496059,480.0,0.000165,2]
[382615746,1756678499605,893.15,0.000165,2]
[382615747,1756678502592,300.0,0.000165,2]
[382615748,1756678502896,1200.0,0.000165,2]
[382615749,1756678503377,300.0,0.000165,2]
[382615750,1756678503744,623.86,0.000165,2]
[382615751,1756678511948,627.73541313,0.00016402,2]
[382615752,1756678513571,480.0,0.000165,2]
[382615753,1756678526939,832.16,0.000165,2]
[382615754,1756678541503,320.96472358,0.000165,2]
[382615755,1756678542480,480.0,0.000165,2]
[382615756,1756678549755,480.0,0.000165,2]
[382615757,1756678552843,641.34,0.000165,2]
[382615758,1756678552981,480.0,0.000165,2]
[382615759,1756678556855,480.0,0.000165,2]
[382615760,1756678558940,847.43,0.000165,2]
[382615761,1756678562210,300.0,0.000165,2]
[382615762,1756678570656,480.0,0.000165,2]
[382615763,1756678572018,480.0,0.000165,2]
[382615764,1756678572069,788.33,0.000165,2]
[382615765,1756678595810,480.0,0.000165,2]
[382615766,1756678597707,279.29495814,0.000165,2]
[382615767,1756678601978,480.0,0.000165,2]
[382615769,1756678613498,480.0,0.000165,2]
[382615770,1756678622368,300.0,0.00016499,2]
[382615771,1756678626958,1200.0,0.00016499,2]
[382615772,1756678627579,480.0,0.000165,2]
[382615773,1756678629172,480.0,0.000165,2]
[382615774,1756678632985,480.0,0.000165,2]
[382615775,1756678633224,480.0,0.000165,2]
[382615776,1756678633269,415.47734393,0.000165,2]
[382615777,1756678635850,480.0,0.000165,2]
[382615778,1756678642587,192.47779192,0.000165,2]
[382615779,1756678649911,523.58,0.000165,2]
[382615780,1756678653065,480.0,0.000165,2]
[382615781,1756678659863,480.0,0.000165,2]
[382615782,1756678661049,480.0,0.000165,2]
[382615783,1756678670846,480.0,0.000165,2]
[382615784,1756678671902,480.0,0.000165,2]
[382615785,1756678675679,480.0,0.000165,2]
[382615786,1756678677958,480.0,0.000165,2]
[382615787,1756678680591,480.0,0.000165,2]
[382615788,1756678680843,480.0,0.000165,2]
[382615789,1756678683011,300.0,0.00016499,2]
[382615790,1756678692429,303.7061256,0.00015503,2]
[382615791,1756678701968,480.0,0.000165,2]
[382615792,1756678702590,480.0,0.000165,2]
[382615793,1756678704631,480.0,0.000165,2]
[382615794,1756678708566,549.26848648,0.00016401,2]
[382615795,1756678716210,480.0,0.000165,2]
[382615796,1756678721001,480.0,0.000165,2]
[382615797,1756678721136,480.0,0.000165,2]
[382615798,1756678723436,381.0,0.00016302,2]
[382615799,1756678723828,480.0,0.000165,2]
[382615800,1756678727623,480.0,0.000165,2]
[382615801,1756678733510,381.0,0.00016146,2]
[382615802,1756678742338,300.0,0.00016499,2]
[382615803,1756678746553,105.03538792,0.000165,2]
[382615804,1756678746638,374.96461208,0.000165,2]
[382615805,1756678747531,381.0,0.00016132,2]
[382615806,1756678751886,381.0,0.00016232,2]
[382615807,1756678757107,381.0,0.00016142,2]
[382615808,1756678761518,381.0,0.000165,2]
[382615809,1756678761930,8101.04538792,0.000165,2]
[382615810,1756678762013,10000.01,0.000165,2]
[382615811,1756678762097,10000.01,0.000165,2]
[382615812,1756678762121,21898.93461208,0.000165,2]
[382615813,1756678762166,480.0,0.000165,2]
[382615814,1756678762195,480.0,0.000165,2]
[382615815,1756678770771,161.93404135,0.000165,2]
[382615816,1756678771104,381.0,0.00016394,2]
[382615817,1756678773374,480.0,0.000165,2]
[382615818,1756678775462,381.0,0.00016261,2]
[382615819,1756678778869,480.0,0.000165,2]
[382615820,1756678779132,480.0,0.000165,2]
[382615821,1756678779826,913.17,0.000165,2]
[382615822,1756678780633,381.0,0.0001627,2]
[382615823,1756678787183,876.685523,0.00013699,2]
[382615824,1756678787577,480.0,0.000165,2]
[382615825,1756678789835,381.0,0.00016223,2]
[382615828,1756678792894,480.0,0.000165,2]
[382615829,1756678799933,480.0,0.000165,2]
[382615830,1756678802979,300.0,0.00016499,2]
[382615831,1756678803606,287.0,0.00016499,2]
[382615832,1756678817411,151.0,0.000165,2]
[382615833,1756678818848,151.0,0.000165,2]
[382615834,1756678821033,410.49221079,0.000165,2]
[382615835,1756678840787,480.0,0.000165,2]
[382615836,1756678840887,480.0,0.000165,2]
[382615837,1756678844100,150.0,0.000165,2]
[382615838,1756678844226,480.0,0.000165,2]
[382615839,1756678862831,300.0,0.000165,2]
[382615840,1756678863799,480.0,0.000165,2]
[382615841,1756678865257,380.01389464,0.000165,2]
[382615842,1756678875283,480.0,0.000165,2]
[382615843,1756678879325,617.58,0.000165,2]
[382615844,1756678890197,985.71,0.000165,2]
[382615845,1756678897018,480.0,0.000165,2]
[382615846,1756678899039,480.0,0.000165,2]
[382615847,1756678899136,480.60992567,0.00016401,2]
[382615848,1756678902714,480.0,0.000165,2]
[382615849,1756678910456,480.0,0.000165,2]
[382615850,1756678918073,987.6,0.000165,2]
[382615851,1756678918201,480.0,0.000165,2]
[382615852,1756678919915,480.0,0.000165,2]
[382615853,1756678922284,300.0,0.000165,2]
[382615854,1756678923653,480.0,0.000165,2]
[382615855,1756678924135,1008.43,0.000165,2]
[382615856,1756678926871,431.0,0.000165,2]
[382615857,1756678932635,481.32029746,0.000165,2]
[382615858,1756678943395,480.0,0.000165,2]
[382615859,1756678953300,480.0,0.000165,2]
[382615860,1756678955060,480.0,0.000165,2]
[382615861,1756678958051,480.0,0.000165,2]
[382615862,1756678959613,1229.74,0.000165,2]
[382615864,1756678975195,536.52,0.000165,2]
[382615865,1756678975803,480.0,0.000165,2]
[382615866,1756678979237,480.0,0.000165,2]
[382615867,1756678982965,300.0,0.000165,2]
[382615868,1756678996514,480.0,0.000165,2]
[382615869,1756678999266,480.0,0.000165,2]
[382615870,1756679002476,292.37934074,0.000165,2]
[382615871,1756679004793,914.2,0.000165,2]
[382615872,1756679010294,480.0,0.000165,2]
[382615873,1756679013266,1733.44,0.000165,2]
[382615874,1756679013474,480.0,0.000165,2]
[382615875,1756679030328,480.0,0.000165,2]
[382615876,1756679031068,480.0,0.000165,2]
[382615877,1756679031265,563.89,0.000165,2]
[382615878,1756679035498,480.0,0.000165,2]